[Event "Titled Tuesday Blitz August 15 Early 2023"]
[White "Yanchenko, Roman"]
[Black "Le, Tuan Minh"]
[WhiteFideId "4137329"]
[BlackFideId "12401153"]
[WhiteElo "2792"]
[BlackElo "2992"]
[Result "0-1"]
[Round "7"]
[TimeControl "180+1"]
[Date "2023.08.15"]
[WhiteClock "0:00:00"]
[BlackClock "0:00:38"]
[Board "15"]

1. d4 {[%clk 0:03:00]}  d5 {[%clk 0:02:59]} 2. Nf3 {[%clk 0:03:01]}  Nf6 {[%clk 0:02:58]} 3. Bf4 {[%clk 0:03:01]}  c5 {[%clk 0:02:57]} 4. c3 {[%clk 0:03:01]}  Qb6 {[%clk 0:02:57]} 5. Qb3 {[%clk 0:02:58]}  Nc6 {[%clk 0:02:57]} 6. Nbd2 {[%clk 0:02:43]}  cxd4 {[%clk 0:02:54]} 7. Nxd4 {[%clk 0:02:37]}  Bd7 {[%clk 0:02:46]} 8. Qxb6 {[%clk 0:02:30]}  axb6 {[%clk 0:02:45]} 9. N2f3 {[%clk 0:02:14]}  e6 {[%clk 0:02:26]} 10. e3 {[%clk 0:02:12]}  Ne4 {[%clk 0:02:21]} 11. Nb5 {[%clk 0:02:04]}  Rc8 {[%clk 0:02:20]} 12. Nc7+ {[%clk 0:01:55]}  Kd8 {[%clk 0:02:18]} 13. Nb5 {[%clk 0:01:55]}  f6 {[%clk 0:02:15]} 14. Nd2 {[%clk 0:01:51]}  Nxd2 {[%clk 0:02:10]} 15. Kxd2 {[%clk 0:01:52]}  e5 {[%clk 0:02:10]} 16. Bg3 {[%clk 0:01:52]}  Na5 {[%clk 0:02:11]} 17. Kc2 {[%clk 0:01:36]}  Nc4 {[%clk 0:02:05]} 18. a4 {[%clk 0:01:16]}  Bf5+ {[%clk 0:01:56]} 19. Kc1 {[%clk 0:01:16]}  Na5 {[%clk 0:01:56]} 20. Kd1 {[%clk 0:00:46]}  Nb3 {[%clk 0:01:55]} 21. Rc1 {[%clk 0:00:46]}  Nxc1 {[%clk 0:01:53]} 22. Kxc1 {[%clk 0:00:47]}  Bc5 {[%clk 0:01:50]} 23. Be2 {[%clk 0:00:46]}  Ke7 {[%clk 0:01:50]} 24. Rd1 {[%clk 0:00:44]}  Rhd8 {[%clk 0:01:50]} 25. Bd3 {[%clk 0:00:43]}  Bxd3 {[%clk 0:01:37]} 26. Rxd3 {[%clk 0:00:43]}  d4 {[%clk 0:01:38]} 27. exd4 {[%clk 0:00:35]}  Bxd4 {[%clk 0:01:38]} 28. f4 {[%clk 0:00:25]}  Ke6 {[%clk 0:01:27]} 29. fxe5 {[%clk 0:00:20]}  Bxe5 {[%clk 0:01:26]} 30. Re3 {[%clk 0:00:20]}  Rd5 {[%clk 0:01:17]} 31. Kc2 {[%clk 0:00:20]}  h5 {[%clk 0:01:15]} 32. Nd4+ {[%clk 0:00:20]}  Kf7 {[%clk 0:01:14]} 33. Nf3 {[%clk 0:00:20]}  Bxg3 {[%clk 0:01:10]} 34. hxg3 {[%clk 0:00:21]}  g5 {[%clk 0:01:11]} 35. Re4 {[%clk 0:00:20]}  b5 {[%clk 0:01:05]} 36. axb5 {[%clk 0:00:20]}  Rxb5 {[%clk 0:01:04]} 37. g4 {[%clk 0:00:20]}  hxg4 {[%clk 0:01:03]} 38. Rxg4 {[%clk 0:00:21]}  Re8 {[%clk 0:01:00]} 39. Nd4 {[%clk 0:00:21]}  Rbe5 {[%clk 0:01:01]} 40. Rg3 {[%clk 0:00:21]}  Kg6 {[%clk 0:01:00]} 41. Rf3 {[%clk 0:00:21]}  f5 {[%clk 0:01:00]} 42. Kd2 {[%clk 0:00:20]}  f4 {[%clk 0:00:52]} 43. Rf2 {[%clk 0:00:20]}  Kh5 {[%clk 0:00:49]} 44. Ne2 {[%clk 0:00:20]}  Kg4 {[%clk 0:00:48]} 45. b3 {[%clk 0:00:18]}  b5 {[%clk 0:00:44]} 46. b4 {[%clk 0:00:17]}  Ra8 {[%clk 0:00:42]} 47. Nc1 {[%clk 0:00:13]}  Kg3 {[%clk 0:00:39]} 48. Rf1 {[%clk 0:00:01]}  Kxg2 {[%clk 0:00:38]} 49. Rd1 {[%clk 0:00:00]}  Rd5+ {[%clk 0:00:38]} 0-1


[Site "https://www.chess.com"]

[Event "Titled Tuesday Blitz August 15 Early 2023"]
[White "Gorovets, Andrey"]
[Black "Hakobyan, Aram"]
[WhiteFideId "13504037"]
[BlackFideId "13306677"]
[WhiteElo "2722"]
[BlackElo "2959"]
[Result "0-1"]
[Round "7"]
[TimeControl "180+1"]
[Date "2023.08.15"]
[WhiteClock "0:00:21"]
[BlackClock "0:01:04"]
[Board "17"]

1. d4 {[%clk 0:03:00]}  Nf6 {[%clk 0:02:59]} 2. c4 {[%clk 0:03:00]}  e6 {[%clk 0:02:59]} 3. Nf3 {[%clk 0:03:00]}  h6 {[%clk 0:02:56]} 4. Nc3 {[%clk 0:02:50]}  Bb4 {[%clk 0:02:56]} 5. e3 {[%clk 0:02:44]}  c5 {[%clk 0:02:55]} 6. Bd3 {[%clk 0:02:42]}  Nc6 {[%clk 0:02:56]} 7. O-O {[%clk 0:02:42]}  Bxc3 {[%clk 0:02:56]} 8. bxc3 {[%clk 0:02:42]}  d6 {[%clk 0:02:57]} 9. e4 {[%clk 0:02:39]}  e5 {[%clk 0:02:57]} 10. d5 {[%clk 0:02:30]}  Ne7 {[%clk 0:02:58]} 11. Nd2 {[%clk 0:02:27]}  g5 {[%clk 0:02:57]} 12. Re1 {[%clk 0:02:23]}  Ng6 {[%clk 0:02:57]} 13. Nf1 {[%clk 0:02:24]}  Nf4 {[%clk 0:02:51]} 14. Ne3 {[%clk 0:02:20]}  h5 {[%clk 0:02:47]} 15. Bc2 {[%clk 0:02:14]}  h4 {[%clk 0:02:47]} 16. Nf5 {[%clk 0:02:14]}  Bxf5 {[%clk 0:02:45]} 17. exf5 {[%clk 0:02:15]}  Kd7 {[%clk 0:02:45]} 18. Rb1 {[%clk 0:02:11]}  Kc7 {[%clk 0:02:39]} 19. Be3 {[%clk 0:02:04]}  Nd7 {[%clk 0:02:18]} 20. a4 {[%clk 0:02:02]}  a5 {[%clk 0:02:15]} 21. Rb5 {[%clk 0:01:47]}  Ra6 {[%clk 0:02:15]} 22. Qb1 {[%clk 0:01:46]}  b6 {[%clk 0:02:15]} 23. Qd1 {[%clk 0:01:43]}  Qf6 {[%clk 0:02:11]} 24. Be4 {[%clk 0:01:42]}  Qh6 {[%clk 0:02:06]} 25. Rb2 {[%clk 0:01:40]}  Nf6 {[%clk 0:02:01]} 26. Bb1 {[%clk 0:01:38]}  Rha8 {[%clk 0:01:56]} 27. Qb3 {[%clk 0:01:34]}  Qf8 {[%clk 0:01:56]} 28. Qb5 {[%clk 0:01:28]}  Qe8 {[%clk 0:01:56]} 29. Qxe8 {[%clk 0:01:13]}  Rxe8 {[%clk 0:01:53]} 30. g3 {[%clk 0:01:14]}  Rg8 {[%clk 0:01:44]} 31. Bc1 {[%clk 0:01:05]}  N4h5 {[%clk 0:01:32]} 32. Kg2 {[%clk 0:01:01]}  Raa8 {[%clk 0:01:25]} 33. h3 {[%clk 0:00:51]}  g4 {[%clk 0:01:19]} 34. gxh4 {[%clk 0:00:46]}  gxh3+ {[%clk 0:01:16]} 35. Kxh3 {[%clk 0:00:47]}  Rg4 {[%clk 0:01:14]} 36. Bd3 {[%clk 0:00:38]}  Rh8 {[%clk 0:01:05]} 37. Bg5 {[%clk 0:00:21]}  Nf4+ {[%clk 0:01:04]} 0-1


[Site "https://www.chess.com"]

[Event "Titled Tuesday Blitz August 15 Early 2023"]
[White "Bersamina, Paulo"]
[Black "Chigaev, Maksim"]
[WhiteFideId "5206995"]
[BlackFideId "4108116"]
[WhiteElo "2763"]
[BlackElo "2944"]
[Result "0-1"]
[Round "7"]
[TimeControl "180+1"]
[Date "2023.08.15"]
[WhiteClock "0:00:00"]
[BlackClock "0:00:25"]
[Board "25"]

1. e4 {[%clk 0:02:56]}  c5 {[%clk 0:02:55]} 2. Nc3 {[%clk 0:02:48]}  d6 {[%clk 0:02:53]} 3. d4 {[%clk 0:02:48]}  cxd4 {[%clk 0:02:54]} 4. Qxd4 {[%clk 0:02:49]}  Nc6 {[%clk 0:02:55]} 5. Qd2 {[%clk 0:02:49]}  g6 {[%clk 0:02:56]} 6. b3 {[%clk 0:02:50]}  Bh6 {[%clk 0:02:56]} 7. f4 {[%clk 0:02:50]}  Nf6 {[%clk 0:02:56]} 8. Bb2 {[%clk 0:02:50]}  e5 {[%clk 0:02:57]} 9. Nge2 {[%clk 0:02:42]}  O-O {[%clk 0:02:49]} 10. O-O-O {[%clk 0:02:41]}  Ng4 {[%clk 0:02:48]} 11. Re1 {[%clk 0:02:17]}  a5 {[%clk 0:02:45]} 12. a4 {[%clk 0:02:11]}  Be6 {[%clk 0:02:39]} 13. Kb1 {[%clk 0:02:10]}  Rc8 {[%clk 0:02:38]} 14. h3 {[%clk 0:02:04]}  Nf2 {[%clk 0:02:37]} 15. Rg1 {[%clk 0:02:04]}  Nb4 {[%clk 0:02:38]} 16. Qe3 {[%clk 0:01:34]}  Nxe4 {[%clk 0:02:25]} 17. Qxe4 {[%clk 0:01:28]}  Bf5 {[%clk 0:02:24]} 18. Qxb7 {[%clk 0:01:27]}  Bxc2+ {[%clk 0:02:06]} 19. Ka1 {[%clk 0:01:26]}  Bxb3 {[%clk 0:02:07]} 20. Rc1 {[%clk 0:01:11]}  Bg7 {[%clk 0:02:00]} 21. f5 {[%clk 0:01:03]}  d5 {[%clk 0:01:53]} 22. Nb5 {[%clk 0:00:37]}  Rxc1+ {[%clk 0:01:44]} 23. Nxc1 {[%clk 0:00:38]}  Bxa4 {[%clk 0:01:44]} 24. g4 {[%clk 0:00:26]}  Qg5 {[%clk 0:01:35]} 25. Nd6 {[%clk 0:00:12]}  Qe3 {[%clk 0:01:28]} 26. Rg2 {[%clk 0:00:07]}  Qe1 {[%clk 0:01:28]} 27. Bb5 {[%clk 0:00:03]}  e4 {[%clk 0:01:22]} 28. Kb1 {[%clk 0:00:03]}  Bxb5 {[%clk 0:00:30]} 29. Qxb5 {[%clk 0:00:03]}  Nd3 {[%clk 0:00:31]} 30. Rc2 {[%clk 0:00:02]}  Bxb2 {[%clk 0:00:30]} 31. fxg6 {[%clk 0:00:01]}  hxg6 {[%clk 0:00:29]} 32. Nxf7 {[%clk 0:00:01]}  Bxc1 {[%clk 0:00:26]} 33. Nh6+ {[%clk 0:00:00]}  Bxh6+ {[%clk 0:00:25]} 0-1


[Site "https://www.chess.com"]

[Event "Titled Tuesday Blitz August 15 Early 2023"]
[White "Kosteniuk, Alexandra"]
[Black "Demidov, Mikhail"]
[WhiteFideId "4128125"]
[BlackFideId "4197143"]
[WhiteElo "2747"]
[BlackElo "2932"]
[Result "0-1"]
[Round "7"]
[TimeControl "180+1"]
[Date "2023.08.15"]
[WhiteClock "0:00:24"]
[BlackClock "0:00:32"]
[Board "26"]

1. c4 {[%clk 0:03:00]}  g6 {[%clk 0:02:59]} 2. d4 {[%clk 0:02:59]}  Bg7 {[%clk 0:02:59]} 3. Nc3 {[%clk 0:02:59]}  d6 {[%clk 0:02:59]} 4. h4 {[%clk 0:02:59]}  h6 {[%clk 0:02:45]} 5. g3 {[%clk 0:02:48]}  Nf6 {[%clk 0:02:40]} 6. Bg2 {[%clk 0:02:48]}  Nc6 {[%clk 0:02:39]} 7. Nf3 {[%clk 0:02:46]}  O-O {[%clk 0:02:37]} 8. h5 {[%clk 0:02:28]}  g5 {[%clk 0:02:28]} 9. Nd5 {[%clk 0:02:00]}  Nxd5 {[%clk 0:02:10]} 10. cxd5 {[%clk 0:02:00]}  Nb4 {[%clk 0:02:10]} 11. Qb3 {[%clk 0:01:53]}  c5 {[%clk 0:02:06]} 12. a3 {[%clk 0:01:09]}  Na6 {[%clk 0:02:01]} 13. dxc5 {[%clk 0:00:59]}  Nxc5 {[%clk 0:02:00]} 14. Qd1 {[%clk 0:00:58]}  Bf5 {[%clk 0:01:55]} 15. O-O {[%clk 0:00:53]}  Rc8 {[%clk 0:01:54]} 16. Be3 {[%clk 0:00:51]}  Bxb2 {[%clk 0:01:51]} 17. Bd4 {[%clk 0:00:49]}  Bxa1 {[%clk 0:01:47]} 18. Bxa1 {[%clk 0:00:48]}  Be4 {[%clk 0:01:31]} 19. Qd4 {[%clk 0:00:40]}  f6 {[%clk 0:01:31]} 20. Nxg5 {[%clk 0:00:38]}  Bxg2 {[%clk 0:01:26]} 21. Ne6 {[%clk 0:00:29]}  Nxe6 {[%clk 0:01:25]} 22. dxe6 {[%clk 0:00:30]}  Bxf1 {[%clk 0:00:56]} 23. Qg4+ {[%clk 0:00:30]}  Kh8 {[%clk 0:00:56]} 24. Qg6 {[%clk 0:00:30]}  Qe8 {[%clk 0:00:52]} 25. Qxh6+ {[%clk 0:00:30]}  Kg8 {[%clk 0:00:53]} 26. Kxf1 {[%clk 0:00:31]}  Rc5 {[%clk 0:00:49]} 27. g4 {[%clk 0:00:29]}  Rg5 {[%clk 0:00:42]} 28. f3 {[%clk 0:00:29]}  Qb5 {[%clk 0:00:36]} 29. Bd4 {[%clk 0:00:24]}  Rc8 {[%clk 0:00:32]} 0-1


[Site "https://www.chess.com"]

[Event "Titled Tuesday Blitz August 15 Early 2023"]
[White "Galchenko, Matvey"]
[Black "Dimitrov, Atanas"]
[WhiteFideId "24175480"]
[BlackFideId "2901315"]
[WhiteElo "2898"]
[BlackElo "2737"]
[Result "1-0"]
[Round "7"]
[TimeControl "180+1"]
[Date "2023.08.15"]
[WhiteClock "0:00:14"]
[BlackClock "0:00:00"]
[Board "27"]

1. f4 {[%clk 0:03:00]}  Nf6 {[%clk 0:02:55]} 2. Nf3 {[%clk 0:03:00]}  d5 {[%clk 0:02:55]} 3. g3 {[%clk 0:03:00]}  c5 {[%clk 0:02:56]} 4. Bg2 {[%clk 0:03:00]}  Nc6 {[%clk 0:02:56]} 5. O-O {[%clk 0:03:00]}  g6 {[%clk 0:02:57]} 6. d3 {[%clk 0:03:01]}  Bg7 {[%clk 0:02:57]} 7. Nc3 {[%clk 0:03:02]}  d4 {[%clk 0:02:54]} 8. Na4 {[%clk 0:03:01]}  Qd6 {[%clk 0:02:49]} 9. c4 {[%clk 0:02:59]}  O-O {[%clk 0:02:46]} 10. a3 {[%clk 0:02:59]}  Ng4 {[%clk 0:02:41]} 11. Rb1 {[%clk 0:02:59]}  Ne3 {[%clk 0:02:38]} 12. Bxe3 {[%clk 0:02:58]}  dxe3 {[%clk 0:02:39]} 13. Nc3 {[%clk 0:02:54]}  Bf5 {[%clk 0:02:33]} 14. Nd5 {[%clk 0:02:45]}  Bd4 {[%clk 0:02:25]} 15. b4 {[%clk 0:02:34]}  Rab8 {[%clk 0:01:41]} 16. b5 {[%clk 0:02:20]}  Na5 {[%clk 0:01:35]} 17. Qc1 {[%clk 0:02:01]}  b6 {[%clk 0:01:27]} 18. Ng5 {[%clk 0:01:54]}  Bg4 {[%clk 0:01:23]} 19. Re1 {[%clk 0:01:48]}  e6 {[%clk 0:01:18]} 20. Nxe3 {[%clk 0:01:44]}  e5 {[%clk 0:01:14]} 21. Kh1 {[%clk 0:01:38]}  exf4 {[%clk 0:01:14]} 22. Nxg4 {[%clk 0:01:38]}  fxg3 {[%clk 0:01:08]} 23. Ne4 {[%clk 0:01:33]}  Qe6 {[%clk 0:01:04]} 24. Qh6 {[%clk 0:01:26]}  Qxg4 {[%clk 0:01:02]} 25. h3 {[%clk 0:00:47]}  Qh5 {[%clk 0:00:57]} 26. Qxh5 {[%clk 0:00:46]}  gxh5 {[%clk 0:00:58]} 27. e3 {[%clk 0:00:46]}  Be5 {[%clk 0:00:57]} 28. Rf1 {[%clk 0:00:42]}  f5 {[%clk 0:00:50]} 29. Ng5 {[%clk 0:00:42]}  Rf6 {[%clk 0:00:35]} 30. Bd5+ {[%clk 0:00:41]}  Kg7 {[%clk 0:00:36]} 31. d4 {[%clk 0:00:33]}  Bd6 {[%clk 0:00:31]} 32. e4 {[%clk 0:00:25]}  fxe4 {[%clk 0:00:22]} 33. Rxf6 {[%clk 0:00:26]}  Kxf6 {[%clk 0:00:22]} 34. Nxe4+ {[%clk 0:00:27]}  Ke7 {[%clk 0:00:23]} 35. Rf1 {[%clk 0:00:28]}  Bc7 {[%clk 0:00:14]} 36. Rf7+ {[%clk 0:00:27]}  Kd8 {[%clk 0:00:15]} 37. dxc5 {[%clk 0:00:23]}  bxc5 {[%clk 0:00:13]} 38. Nxc5 {[%clk 0:00:24]}  Bb6 {[%clk 0:00:10]} 39. Ne6+ {[%clk 0:00:14]}  Ke8 {[%clk 0:00:01]} 40. Rf8+ {[%clk 0:00:14]}  Ke7 {[%clk 0:00:02]} 41. Rxb8 {[%clk 0:00:15]}  h4 {[%clk 0:00:02]} 42. c5 {[%clk 0:00:14]}  Bc7 {[%clk 0:00:00]} 43. Nxc7 {[%clk 0:00:14]} 1-0


[Site "https://www.chess.com"]

[Event "Titled Tuesday Blitz August 15 Early 2023"]
[White "Goltsev, Dmitry"]
[Black "Ozen, Deniz"]
[WhiteFideId "24176710"]
[BlackFideId "6349196"]
[WhiteElo "2654"]
[BlackElo "2856"]
[Result "1/2-1/2"]
[Round "7"]
[TimeControl "180+1"]
[Date "2023.08.15"]
[WhiteClock "0:00:05"]
[BlackClock "0:00:23"]
[Board "28"]

1. e4 {[%clk 0:03:00]}  e5 {[%clk 0:03:00]} 2. Nf3 {[%clk 0:02:59]}  Nf6 {[%clk 0:03:01]} 3. Nxe5 {[%clk 0:02:59]}  d5 {[%clk 0:03:02]} 4. exd5 {[%clk 0:02:58]}  Qxd5 {[%clk 0:03:03]} 5. d4 {[%clk 0:02:56]}  Nc6 {[%clk 0:03:03]} 6. Nc3 {[%clk 0:02:53]}  Bb4 {[%clk 0:03:03]} 7. Be3 {[%clk 0:02:50]}  Nxe5 {[%clk 0:02:58]} 8. dxe5 {[%clk 0:02:49]}  Qxe5 {[%clk 0:02:58]} 9. Qd4 {[%clk 0:02:47]}  Qa5 {[%clk 0:02:39]} 10. a3 {[%clk 0:02:38]}  Bxc3+ {[%clk 0:02:38]} 11. Qxc3 {[%clk 0:02:39]}  Qxc3+ {[%clk 0:02:39]} 12. bxc3 {[%clk 0:02:40]}  O-O {[%clk 0:02:32]} 13. O-O-O {[%clk 0:02:36]}  Be6 {[%clk 0:02:27]} 14. Be2 {[%clk 0:02:33]}  Rad8 {[%clk 0:02:20]} 15. Rxd8 {[%clk 0:02:15]}  Rxd8 {[%clk 0:02:21]} 16. Bxa7 {[%clk 0:02:06]}  b6 {[%clk 0:02:17]} 17. Rd1 {[%clk 0:02:05]}  Rf8 {[%clk 0:02:05]} 18. Bf3 {[%clk 0:01:57]}  Bg4 {[%clk 0:01:55]} 19. c4 {[%clk 0:01:40]}  Bxf3 {[%clk 0:01:44]} 20. gxf3 {[%clk 0:01:41]}  h5 {[%clk 0:01:44]} 21. c5 {[%clk 0:01:40]}  Ra8 {[%clk 0:01:45]} 22. cxb6 {[%clk 0:01:40]}  cxb6 {[%clk 0:01:46]} 23. Bxb6 {[%clk 0:01:39]}  Rxa3 {[%clk 0:01:46]} 24. Be3 {[%clk 0:01:36]}  Kh7 {[%clk 0:01:38]} 25. Kb2 {[%clk 0:01:33]}  Ra4 {[%clk 0:01:36]} 26. Rd4 {[%clk 0:01:32]}  Ra5 {[%clk 0:01:30]} 27. c4 {[%clk 0:01:31]}  Kg6 {[%clk 0:01:29]} 28. Kb3 {[%clk 0:01:29]}  Kf5 {[%clk 0:01:24]} 29. c5 {[%clk 0:01:20]}  Ke6 {[%clk 0:01:17]} 30. Rd6+ {[%clk 0:01:15]}  Ke7 {[%clk 0:01:14]} 31. Kb4 {[%clk 0:01:12]}  Ra2 {[%clk 0:01:15]} 32. Rd2 {[%clk 0:01:06]}  Rxd2 {[%clk 0:00:54]} 33. Bxd2 {[%clk 0:01:07]}  Kd7 {[%clk 0:00:54]} 34. Kb5 {[%clk 0:01:06]}  Nd5 {[%clk 0:00:54]} 35. c6+ {[%clk 0:00:55]}  Kd6 {[%clk 0:00:51]} 36. Ba5 {[%clk 0:00:46]}  g5 {[%clk 0:00:46]} 37. Bd8 {[%clk 0:00:40]}  g4 {[%clk 0:00:42]} 38. fxg4 {[%clk 0:00:38]}  hxg4 {[%clk 0:00:43]} 39. Ba5 {[%clk 0:00:38]}  f5 {[%clk 0:00:39]} 40. c7 {[%clk 0:00:32]}  Kd7 {[%clk 0:00:34]} 41. Kc5 {[%clk 0:00:28]}  Nf6 {[%clk 0:00:34]} 42. Kd4 {[%clk 0:00:20]}  Nh5 {[%clk 0:00:30]} 43. Ke5 {[%clk 0:00:15]}  f4 {[%clk 0:00:31]} 44. Kf5 {[%clk 0:00:12]}  g3 {[%clk 0:00:30]} 45. fxg3 {[%clk 0:00:12]}  fxg3 {[%clk 0:00:30]} 46. h4 {[%clk 0:00:10]}  g2 {[%clk 0:00:28]} 47. Bb6 {[%clk 0:00:11]}  Ng7+ {[%clk 0:00:24]} 48. Kg4 {[%clk 0:00:09]}  Kc8 {[%clk 0:00:24]} 49. Kf3 {[%clk 0:00:06]}  g1=Q {[%clk 0:00:18]} 50. Bxg1 {[%clk 0:00:07]}  Kxc7 {[%clk 0:00:19]} 51. Bd4 {[%clk 0:00:06]}  Ne6 {[%clk 0:00:19]} 52. Be5+ {[%clk 0:00:05]}  Kd7 {[%clk 0:00:20]} 53. Ke4 {[%clk 0:00:05]}  Ke7 {[%clk 0:00:20]} 54. Kf5 {[%clk 0:00:06]}  Kf7 {[%clk 0:00:20]} 55. Bf6 {[%clk 0:00:05]}  Ng7+ {[%clk 0:00:20]} 56. Ke5 {[%clk 0:00:05]}  Nh5 {[%clk 0:00:19]} 57. Bg5 {[%clk 0:00:04]}  Kg6 {[%clk 0:00:19]} 58. Ke6 {[%clk 0:00:03]}  Ng7+ {[%clk 0:00:20]} 59. Kd5 {[%clk 0:00:04]}  Nh5 {[%clk 0:00:21]} 60. Ke4 {[%clk 0:00:04]}  Ng7 {[%clk 0:00:21]} 61. Kf4 {[%clk 0:00:05]}  Nh5+ {[%clk 0:00:22]} 62. Kg4 {[%clk 0:00:05]}  Ng7 {[%clk 0:00:23]} 63. Be3 {[%clk 0:00:05]}  Nh5 {[%clk 0:00:23]} 64. Bd4 {[%clk 0:00:06]}  Ng7 {[%clk 0:00:24]} 65. Bc3 {[%clk 0:00:06]}  Nh5 {[%clk 0:00:24]} 66. Kf3 {[%clk 0:00:07]}  Kf5 {[%clk 0:00:24]} 67. Bh8 {[%clk 0:00:06]}  Nf4 {[%clk 0:00:24]} 68. Kg3 {[%clk 0:00:05]}  Ng6 {[%clk 0:00:23]} 69. Bd4 {[%clk 0:00:05]}  Nxh4 {[%clk 0:00:23]} 1/2-1/2


[Site "https://www.chess.com"]